Cogmind - Beta 14 @@@ ROGUE MODE // 2024.10.27 @ 22:23:34 Player: DGSTER Result: Destroyed by H-66 Slayer with Heavy Assault Rifle Performance ------------- Evolutions (4) 2000 Regions Visited (6) 1200 Robots Destroyed (82) 410 Value Destroyed (2930) 2930 Prototype IDs (7) 140 Alien Tech Used (0) 0 Bonus (591) 591 TOTAL SCORE: 7271 Bonus ------- High Alert Combat Kills 91 Entered DSFs 500 Cogmind --------- Core Integrity 0/850 Matter 300/300 Energy 100/100 System Corruption 7% Temperature Cool (0) Movement Core (50) Location -6/Factory Parts ------- > --- POWER (2) -------- (None) > --- PROPULSION (4) --- (None) > --- UTILITY (6) ------ (None) > --- WEAPON (3) ------- (None) > --- INVENTORY (5) ---- (None) Peak State ------------ > --- POWER ------------ Light Deuterium Engine Nuclear Core > --- PROPULSION ------- Medium Treads Medium Treads Titanium Leg > --- UTILITY ---------- Advanced Heat Sink Advanced Sensor Array Advanced Targeting Computer Transmission Jammer Improved Light Armor Plating High-powered Tractor Beam > --- WEAPON ----------- Precision Shock Rifle Advanced Assault Cannon > --- INVENTORY -------- Angular Momentum Engine Improved Proton Missile Launcher Mini Grenade Launcher [Rating: 50] Favorites ----------- Power Nuclear Core Engine Improved Ion Engine Power Core Nuclear Core Propulsion Aluminum Leg Treads Medium Treads Leg Aluminum Leg Wheel Wheel Utility Advanced Targeting Computer Device High-powered Tractor Beam Storage Small Storage Unit Processor Advanced Targeting Computer Protection Improved Light Armor Plating Weapon High-powered Shotgun Energy Gun Beam Rifle Ballistic Gun High-powered Shotgun Ballistic Cannon Advanced Assault Cannon Launcher Mini Grenade Launcher Build | -11 -10 -9 -8 -7 -7 -6 ------- Run | Yrd Mat Mat Mat Fac DSF Fac Slots Evolved 8 | . . 2 2 2 . 2 Power 1 | . . . 1 . . . Propulsion 2 | . . 1 . 1 . . Utility 4 | . . 1 1 1 . 1 Weapon 1 | . . . . . . 1 Parts Attached 87 | 6 3 15 22 1 14 26 Power 13 | 1 1 1 6 . 2 2 Engine 7 | 1 1 1 2 . . 2 Core 6 | . . . 4 . 2 . Reactor . | . . . . . . . Propulsion 29 | 2 . 6 5 1 5 10 Treads 8 | . . . . . 2 6 Leg 20 | 2 . 5 5 1 3 4 Wheel 1 | . . 1 . . . . Hover . | . . . . . . . Flight . | . . . . . . . Utility 18 | 1 2 2 3 . 3 7 Device 10 | . 1 1 2 . 1 5 Storage 2 | 1 . . 1 . . . Processor 3 | . 1 1 . . . 1 Hackware . | . . . . . . . Protection 3 | . . . . . 2 1 Artifact . | . . . . . . . Weapon 27 | 2 . 6 8 . 4 7 Energy Gun 4 | . . 2 . . . 2 Energy Cannon . | . . . . . . . Ballistic Gun 15 | 2 . 4 7 . 2 . Ballistic Cannon 3 | . . . . . 2 1 Launcher 5 | . . . 1 . . 4 Special Weapon . | . . . . . . . Impact Weapon . | . . . . . . . Slashing Weapon . | . . . . . . . Piercing Weapon . | . . . . . . . Special Melee Weapon . | . . . . . . . Unidentified Prototypes 2 | . . . . . 1 1 Parts Lost 34 | . . 3 4 . 8 19 Power 7 | . . 1 2 . 2 2 Propulsion 11 | . . 2 2 . 1 6 Utility 9 | . . . . . 3 6 Weapon 7 | . . . . . 2 5 Highest Loss Streak 8 | . . 1 2 . 6 8 To Critical Strikes . | . . . . . . . Average Slot Usage (%) 86 | . 97 95 93 92 80 69 Engine 7 | . 14 11 9 7 1 1 Core 5 | . . . 7 7 3 9 Treads 2 | . . . . . 6 7 Leg 23 | . 28 29 26 30 22 12 Device 12 | . 4 9 13 15 11 15 Storage 7 | . 14 11 9 7 7 2 Processor 8 | . 6 10 9 7 7 7 Energy Gun 2 | . . 9 . . . 1 Ballistic Gun 11 | . 28 12 17 15 5 . Ballistic Cannon 3 | . . . . . 9 7 Peak Build Rating 50 | 6 9 17 33 34 42 50 Average Rating 26 | 3 7 15 27 33 34 37 On Entrance 19 | . 6 9 17 33 33 40 Naked Turns 57 | . . . . . . 57 Heaviest Build 51 | 11 15 19 41 41 51 49 Greatest Support 57 | 20 20 30 39 49 57 56 Greatest Overweight (x) 2 | . . 1 2 . 1 1 Average Overweight (x) . | . . . . . . . Largest Inventory Capacity 15 | 8 8 8 15 15 15 15 Average Capacity 10 | 6 8 8 11 15 15 9 Most Carried 15 | 5 8 8 13 13 15 6 Average Carried 6 | 2 4 7 9 12 7 3 Final Capacity 15 | 8 8 8 15 15 15 5 Final Carried 13 | 3 5 8 13 12 6 . Class Distribution -------------------- 79% | Mutant 20% | Scavenger-Mutant Dominant Class ---------------- Mutant | -10/Materials Scavenger-Mutant | -9/Materials Mutant | -8/Materials Mutant | -7/Factory Mutant | -7/DSF Mutant | -6/Factory Resources | -11 -10 -9 -8 -7 -7 -6 ----------- Run | Yrd Mat Mat Mat Fac DSF Fac Matter Collected 2258 | 223 19 334 647 . 462 573 Remotely 1372 | . . . 647 . 427 298 Salvage Created 2668 | . 53 759 854 . 285 717 Parts 152 | . 9 36 56 . 9 42 Haulers Intercepted 1 | . . 1 . . . . Recyclers Shooed 3 | . . . 1 . . 2 Parts Field Recycled . | . . . . . . . Retrieved Matter . | . . . . . . . Parts Self-Destructed . | . . . . . . . Prevented . | . . . . . . . Kills | -11 -10 -9 -8 -7 -7 -6 ------- Run | Yrd Mat Mat Mat Fac DSF Fac Combat Hostiles Destroyed 74 | . 3 18 26 . 9 18 Guns 50 | . 3 18 23 . 5 1 Cannons 14 | . . . . . 4 10 AOE 8 | . . . 3 . . 5 Classes Destroyed 15 | . 1 3 4 . 2 5 Worker 1 | . . . 1 . . . Builder 2 | . . . . . . 2 Hauler 1 | . . 1 . . . . Recycler 2 | . . . 1 . . 1 Operator 1 | . . . . . . 1 Watcher 1 | . . . 1 . . . Swarmer 20 | . 3 3 7 . . 7 Saboteur 1 | . . . . . . 1 Grunt 38 | . . 12 15 . 6 5 Duelist 1 | . . . 1 . . . Sentry 8 | . . 3 3 . 1 1 Specialist 1 | . . . . . 1 . Hunter 3 | . . . . . . 3 Programmer 1 | . . . . . . 1 Heavy 1 | . . . . . 1 . Best Kill Streak 7 | . 2 5 7 . 7 5 Combat Bots Only 7 | . 2 5 5 . 7 5 Max Kills in Single Turn 5 | . 1 1 5 . 1 2 Gunslinging 1 | . . . 1 . . . Exploded 3 | . . . 3 . . 2 Melee . | . . . . . . . Uniques/NPCs Destroyed . | . . . . . . . Combat | -11 -10 -9 -8 -7 -7 -6 -------- Run | Yrd Mat Mat Mat Fac DSF Fac Hostile Shots Fired 571 | . 7 86 91 . 118 269 Missed 210 | . . 29 32 . 37 112 Damage Taken 5800 | . 49 724 971 . 1626 2430 Core 1542 | . 6 116 164 . 395 861 Absorbed by Shields . | . . . . . . . Redirected to Shielding 154 | . . . . . 154 . Core Remaining (%) 76 | 100 97 71 70 . 43 . Volleys Fired 197 | . 5 54 58 . 31 49 Largest 2 | . 2 2 2 . 2 2 Hottest 103 | . 40 79 50 . 96 103 Shots Fired 355 | . 10 108 115 . 62 60 Gun 281 | . 10 108 114 . 44 5 Cannon 63 | . . . . . 18 45 Launcher 11 | . . . 1 . . 10 Special . | . . . . . . . Kinetic 295 | . 10 64 114 . 62 45 Thermal 44 | . . 44 . . . . Explosive 6 | . . . 1 . . 5 Electromagnetic 10 | . . . . . . 10 Robot Hit Streak 25 | . 3 25 9 . 9 16 Robot Miss Streak 6 | . 1 6 3 . 6 2 Penetration Max . | . . . . . . . Secondary Targets 3 | . . . 1 . 2 . Max Gunslinging Chain 1 | . . . 1 . 1 . Shots Hit Robots 271 | . 5 81 96 . 49 40 Core Hits 181 | . 3 33 61 . 38 46 Critical Kills 1 | . . . 1 . . . Critical Parts Destroyed . | . . . . . . . Critical Strikes 7 | . . 2 1 . 2 2 Burn 2 | . . 2 . . . . Destroy 1 | . . . 1 . . . Blast 4 | . . . . . 2 2 Melee Attacks . | . . . . . . . Impact . | . . . . . . . Slashing . | . . . . . . . Piercing . | . . . . . . . Sneak Attacks . | . . . . . . . Combat Hostiles . | . . . . . . . Follow-up Attacks . | . . . . . . . Damage Inflicted 6595 | 3 56 1010 2098 . 1092 2336 Guns 3741 | . 56 1008 1807 . 794 76 Cannons 1205 | . . . . . 298 907 Explosions 1592 | . . . 275 . . 1317 Melee . | . . . . . . . Ramming 57 | 3 . 2 16 . . 36 Kinetic 4365 | . 56 503 1807 . 1092 907 Thermal 930 | . . 505 . . . 425 Explosive 543 | . . . 275 . . 268 Electromagnetic 700 | . . . . . . 700 Impact . | . . . . . . . Slashing . | . . . . . . . Piercing . | . . . . . . . Highest Corruption 7 | . . 1 . . . 7 Average Corruption 1 | . . 1 . . . 2 Corruption Purged . | . . . . . . . Corruption Blocked . | . . . . . . . Effects 5 | . . 1 . . . 4 Matter Fused 3 | . . 1 . . . 2 Heat Flow Errors 1 | . . . . . . 1 Energy Discharges 1 | . . . . . . 1 Overload Shots . | . . . . . . . Overflow Damage 23 | . . . . . . 23 Projectiles 1 | . . . . . . 1 Explosions 22 | . . . . . . 22 Melee . | . . . . . . . Knockbacks 15 | . . . . . 3 12 Impact 2 | . . . . . . 2 Kinetic 12 | . . . . . 3 9 Secondary 1 | . . . . . . 1 Self-Inflicted Damage 12 | . . . . . . 12 Shots . | . . . . . . . Rammed 8 | . . . . . . 8 Targets Rammed 19 | 1 . 1 5 1 . 11 Kicked 11 | 1 . 1 5 1 . 3 Crushed . | . . . . . . . Highest Temperature 1100 | . 2 20 54 . 1100 215 Average Temperature 146 | . 1 5 14 . 438 88 Received Heat Transfer 1416 | . . 312 441 . 393 270 Effects 24 | . . . . . 23 1 Shutdowns 8 | . . . . . 8 . Energy Bleed 1 | . . . . . . 1 Matter Decay 2 | . . . . . 2 . Short Circuit 1 | . . . . . 1 . Damage (minor) 3 | . . . . . 3 . Damage (major) 8 | . . . . . 8 . Damage (core) 1 | . . . . . 1 . Siege Activations . | . . . . . . . Robots Corrupted 2 | . . . . . . 2 Combat Hostiles 2 | . . . . . . 2 Parts Fried 2 | . . . . . . 2 Impact Corruptions . | . . . . . . . Robots Melted . | . . . . . . . Combat Hostiles . | . . . . . . . Parts Melted 2 | . . 2 . . . . Heat Transferred 1724 | . . 1443 . . . 281 Parts Sabotaged . | . . . . . . . Parts Stolen . | . . . . . . . Parts Stripped . | . . . . . . . Power Chain Reactions 1 | . . . . . . 1 Alert | -11 -10 -9 -8 -7 -7 -6 ------- Run | Yrd Mat Mat Mat Fac DSF Fac Peak Influence 615 | . 130 407 615 160 262 248 Initial 160 | . . 54 108 160 112 137 Average 240 | . 66 233 398 160 214 146 Maximum Alert Level 2 | . . 2 2 . 1 1 Low Security (%) 48 | 100 100 39 18 100 35 69 Level 1 33 | . . 58 22 . 64 30 Level 2 18 | . . 2 58 . . . Level 3 . | . . . . . . . Level 4 . | . . . . . . . Level 5 . | . . . . . . . High Security . | . . . . . . . Max Security . | . . . . . . . Sterilizations 1 | . . . . . 1 . Squads Dispatched 8 | . . 2 3 . 1 2 Investigation 1 | . . . 1 . . . Extermination 1 | . . . . . . 1 Reinforcement 6 | . . 2 2 . 1 1 Assault . | . . . . . . . Garrison . | . . . . . . . Intercept . | . . . . . . . Searches Triggered . | . . . . . . . Construction Impeded 2 | . . . 1 . . 1 Haulers Reinforced . | . . . . . . . Active Scanning Responses . | . . . . . . . Cargo Convoy Interrupts 1 | . . . . . . 1 Stealth | -11 -10 -9 -8 -7 -7 -6 --------- Run | Yrd Mat Mat Mat Fac DSF Fac Distress Signals 5 | . . 1 3 . . 1 Communications Jammed 51 | . . . . . . 51 Distress Signals 51 | . . . . . . 51 Times Spotted 132 | . 5 33 43 . 11 40 Peak Tracking Total 12 | . 3 4 7 . 4 12 Tactical Retreats 11 | . 1 3 2 . 2 3 Traps | -11 -10 -9 -8 -7 -7 -6 ------- Run | Yrd Mat Mat Mat Fac DSF Fac Traps Triggered 5 | . . 1 2 . 1 1 Indirectly . | . . . . . . . Trap Hack Attempts . | . . . . . . . Triggered . | . . . . . . . Disarmed . | . . . . . . . Reprogrammed . | . . . . . . . Reused . | . . . . . . . Traps Extracted . | . . . . . . . Installed . | . . . . . . . Triggered . | . . . . . . . Machines | -11 -10 -9 -8 -7 -7 -6 ---------- Run | Yrd Mat Mat Mat Fac DSF Fac Machines Disabled 4 | . . 3 1 . . . Max in Single Turn 3 | . . 3 1 . . . Garrison Access 1 | . . . . . . 1 Machines Repaired . | . . . . . . . Machines Dismantled . | . . . . . . . Machines Sabotaged . | . . . . . . . Overloaded Fab Kills . | . . . . . . . Hacking | -11 -10 -9 -8 -7 -7 -6 --------- Run | Yrd Mat Mat Mat Fac DSF Fac Machines Accessed 19 | . 2 5 7 1 . 4 Terminals 18 | . 2 5 7 1 . 3 Fabricators . | . . . . . . . Repair Stations . | . . . . . . . Recycling Units . | . . . . . . . Scanalyzers . | . . . . . . . Garrison Access 1 | . . . . . . 1 Total Hacks 49 | . 6 14 18 1 . 10 Successful 19 | . . 6 8 1 . 4 Failed 30 | . 6 8 10 . . 6 Catastrophic 7 | . 2 2 2 . . 1 Database Lockouts . | . . . . . . . Manual 15 | . . 6 9 . . . Terminals 47 | . 6 14 18 1 . 8 Fabricators . | . . . . . . . Repair Stations . | . . . . . . . Recycling Units . | . . . . . . . Scanalyzers . | . . . . . . . Garrison Access 2 | . . . . . . 2 Terminal Hacks 18 | . . 6 8 1 . 3 Record 4 | . . . 1 . . 3 Robot Analysis 1 | . . . 1 . . . Prototype ID Bank 2 | . . 1 1 . . . Open DSF 1 | . . . . 1 . . Emergency Access Points 1 | . . 1 . . . . Alert Level 6 | . . 3 3 . . . Unreport Threat 2 | . . 1 1 . . . Dispatch Records 1 | . . . 1 . . . Fabricator Hacks . | . . . . . . . Repair Station Hacks . | . . . . . . . Recycling Unit Hacks . | . . . . . . . Scanalyzer . | . . . . . . . Garrison Access Hacks 1 | . . . . . . 1 Seal Access 1 | . . . . . . 1 Unauthorized Hacks . | . . . . . . . Terminals . | . . . . . . . Fabricators . | . . . . . . . Repair Stations . | . . . . . . . Recycling Units . | . . . . . . . Scanalyzers . | . . . . . . . Garrison Access . | . . . . . . . Data Cores Recovered 1 | . . . . . . 1 Used . | . . . . . . . Hacking Detections 16 | . 2 4 6 . . 4 Full Trace Events . | . . . . . . . Feedback Events . | . . . . . . . Feedback Blocked . | . . . . . . . Robot Schematics Acquired . | . . . . . . . Robots Built . | . . . . . . . Authchips . | . . . . . . . Time . | . . . . . . . Total Robot Build Rating . | . . . . . . . Part Schematics Acquired . | . . . . . . . Parts Built . | . . . . . . . Authchips . | . . . . . . . Time . | . . . . . . . Total Part Build Rating . | . . . . . . . Parts Repaired . | . . . . . . . Time . | . . . . . . . Parts Recycled . | . . . . . . . Recycled Matter . | . . . . . . . Retrieved Matter . | . . . . . . . Retrieved Components . | . . . . . . . Parts Scanalyzed . | . . . . . . . Part Schematics Acquired . | . . . . . . . Parts Damaged . | . . . . . . . Bothacking | -11 -10 -9 -8 -7 -7 -6 ------------ Run | Yrd Mat Mat Mat Fac DSF Fac Used RIF Installer . | . . . . . . . Robots Hacked . | . . . . . . . Non-combat . | . . . . . . . Combat . | . . . . . . . Robot Hacks Applied . | . . . . . . . Relay Couplers Released . | . . . . . . . Fabnet Peak Effective % . | . . . . . . . Robots Rewired . | . . . . . . . Allies Hacked . | . . . . . . . Hacks Repelled . | . . . . . . . Allies | -11 -10 -9 -8 -7 -7 -6 -------- Run | Yrd Mat Mat Mat Fac DSF Fac Total Allies . | . . . . . . . Largest Group . | . . . . . . . Highest-Rated Group . | . . . . . . . Highest-Rated Ally . | . . . . . . . Total Orders . | . . . . . . . Ally Attacks . | . . . . . . . Total Damage . | . . . . . . . Kills . | . . . . . . . Allies Corrupted . | . . . . . . . Allies Melted . | . . . . . . . Intel | -11 -10 -9 -8 -7 -7 -6 ------- Run | Yrd Mat Mat Mat Fac DSF Fac Robot Analysis Total 1 | . . . 1 . . . Derelict Logs Recovered . | . . . . . . . Drone Launches . | . . . . . . . Drone Recoveries . | . . . . . . . Exploration | -11 -10 -9 -8 -7 -7 -6 ------------- Run | Yrd Mat Mat Mat Fac DSF Fac Turns Passed 3984 | 60 251 810 1221 170 346 1126 Spaces Moved 2326 | 46 181 416 604 139 150 790 Core 221 | 21 . . . . . 200 Treads 188 | . . . . . 94 94 Legs 1917 | 25 181 416 604 139 56 496 Wheels . | . . . . . . . Hover . | . . . . . . . Flight . | . . . . . . . Fastest Speed 50 | 50 120 120 120 120 112 50 Average Speed 129 | 88 120 120 152 120 152 118 Slowest Speed 260 | 120 120 190 260 120 240 200 Overloaded Moves . | . . . . . . . Propulsion Burnouts . | . . . . . . . Robots Hopped . | . . . . . . . Cave-ins Triggered . | . . . . . . . Exploration Rate (%) 39 | 4 32 52 66 3 94 27 Regions Visited 6 Branch Regions . Pre-discovered Areas . | . . . . . . . Known Exits Taken 1 | . . . . 1 . . Unknown Exits Taken 4 | 1 1 1 1 . . . Scrap Searched . | . . . . . . . Spaces Dug . | . . . . . . . Terrain Destroyed 53 | . . 15 13 . . 25 Melee . | . . . . . . . Projectile 4 | . . . . . . 4 AOE 49 | . . 15 13 . . 21 Terrain Rammed . | . . . . . . . Walls Destroyed . | . . . . . . . Machines Disabled . | . . . . . . . Actions | -11 -10 -9 -8 -7 -7 -6 --------- Run | Yrd Mat Mat Mat Fac DSF Fac Total 2953 | 65 207 627 790 142 204 918 Wait 225 | 4 10 109 75 . 2 25 Move 2320 | 45 180 415 603 138 149 790 Hop . | . . . . . . . Pick Up 58 | 9 6 20 16 1 1 5 Fast Attach 16 | . . . 5 . 4 7 Attach 38 | 6 3 6 8 1 4 10 Detach 1 | . . . . . . 1 Swap 33 | . . 9 9 . 6 9 Drop 45 | . 3 13 11 1 6 11 Fire 197 | . 5 54 58 . 31 49 Melee . | . . . . . . . Ram 7 | . . . . . . 7 Kick 11 | 1 . 1 5 1 . 3 Crush 1 | . . . . . . 1 Escape Stasis . | . . . . . . . Rewire 1 | . . . . . 1 . Trap . | . . . . . . . Miscellaneous . | . . . . . . . Route ------- -11/Scrapyard -10/Materials -9/Materials (discovered 2 exits: *Mat / [*Min]) -8/Materials -7/Factory -7/DSF -6/Factory History --------- Turn | Location | Event 11 | -11/Scrapyard | Discovered new exit (range 16) 61 | -11/Scrapyard | Entered Materials 237 | -10/Materials | Discovered new exit (range 5) 312 | -10/Materials | Entered another Materials area 312 | -9/Materials | Evolved 2 slots: Propulsion x1, Utility x1 315 | -9/Materials | Build established: Mutant 736 | -9/Materials | Discovered new exit (range 9) 1058 | -9/Materials | Discovered new exit (range 14) 1122 | -9/Materials | Entered another Materials area 1122 | -8/Materials | Evolved 2 slots: Power x1, Utility x1 1243 | -8/Materials | Build established: Scavenger-Mutant 1690 | -8/Materials | Build established: Mutant 2286 | -8/Materials | Discovered new exit (range 16) 2343 | -8/Materials | Entered Factory 2343 | -7/Factory | Evolved 2 slots: Propulsion x1, Utility x1 2371 | -7/Factory | Identified exit to DSF 2513 | -7/Factory | Entered DSF 2561 | -7/DSF | Discovered new exit (range 12) 2571 | -7/DSF | Additional patrols routed to DSF 2700 | -7/DSF | Lost 6 parts (1p1n2u2w) 2711 | -7/DSF | Destroyed 7 combat bots 2717 | -7/DSF | Sterilization system engaged 2737 | -7/DSF | Ambient heat levels rising (+10) 2752 | -7/DSF | Ambient heat levels rising (+10) 2767 | -7/DSF | Ambient heat levels rising (+10) 2782 | -7/DSF | Ambient heat levels rising (+10) 2797 | -7/DSF | Ambient heat levels rising (+10) 2812 | -7/DSF | Ambient heat levels rising (+10) 2827 | -7/DSF | Ambient heat levels rising (+10) 2838 | -7/DSF | Core integrity fell below 50% 2842 | -7/DSF | Ambient heat levels rising (+10) 2857 | -7/DSF | Ambient heat levels rising (+10) 2859 | -7/DSF | Entered Factory 2859 | -6/Factory | Evolved 2 slots: Utility x1, Weapon x1 3310 | -6/Factory | Spotted B-75 Beast 3855 | -6/Factory | Lost 4 parts (2n2w) 3870 | -6/Factory | Cargo convoy interrupted 3936 | -6/Factory | Core integrity fell below 50% 3959 | -6/Factory | Lost 8 parts (1p1n4u2w) 3970 | -6/Factory | Core integrity fell below 20% 3985 | -6/Factory | Destroyed by H-66 Slayer with Heavy Assault Rifle Last Messages --------------- Slammed into P-60 Hacker. P-60 Hacker knocked back. System corrupted: Heat flow error (+243). Slammed into X-72 Disruptor. Destabilizing: Core damaged (-8). Overheating: Energy bleed (-19). Penetrated by Slug. P-60 Hacker suffers critical hit (Destroy). P-60 Hacker destroyed. Slug penetrates Wall. Acquired 9 matter. ALERT: Rogue bot located, Programmers report to Factory Zone 6D. Penetrated by Slug. P-60 Hacker resets R-10 Processor, system corruption cleaned. Slammed into K-01 Serf. Penetrated by Slug. Slug penetrates Wall. Slug penetrates R-10 Processor. Penetrated by Slug. [Achievement: Back For More] Map ----- +----------------------------------------------------+ | ????????????????????????# # """" | | ????????????????????????# # ^ #####+## | | ????????????????????????# # ^ """" #?? | | ????????????????????????# # """" ## """ | | ?????????????????????????? # """" ## """ | | ???????????????????????????? # ## """ | | ???????????????????###########+## ## | | ############?????# ##! ! | | +???? " " ######## | | #?????# ""G"" ######## | | #?????# ############# # | | #?????????############ + | | +?????????# """ ##### #### # " " | | [/ #?????????# """ #???# #??# # "Y" | | ! [ #?????????# """ #???# #??# # """ | | ! #?????????# #???# #??# ######## | | #?????????#!!! #???# #??# #### | | #?????????#!! #???# #??# # """ | | #?????????#!! #???# #??#### # "R" | | #?????????# ! #???# #?????# # " " | | #####+####################+#####???#%#?????# # | | h #????#%#?????# ##### | | u ######+####### #### | | % k # ] # # | | u%% # #### # | | % R @ # !! ##?# # | | #####+#############+##### # !! ! #?# + | | ??? # # ! ##?### | | ????# # # """ #????# | | ???# # + """ #????## | | """" ??# """ """ # #% """ #?????? | | """" ! ??# """ """ # # ! #?????? | | """" ??# """ """ # # #?????? | | """" "" ?# !# k R#! #?????? | | "?"" """?# """ """ # ^ # """T""" #?????? | | "??" T" # """ """ # k ##############?????? | | ???" "?? # """ ""? # #??????????????????? | | ??? "??????? ?? # #??????????????????? | | ??? ???????? ?? # #??????????????????? | | ???####?????????###??#### #??????????????????? | | ????????????????????????# #??????????????????? | | ????????????????????????# #??????????????????? | | ????????????????????????# ??????????????????? | | ????????????????????????+ ??????????????????? | | ????????????????????????# ??????????????????? | | ????????????????????????# ??????????????????? | | ?????????????????????????? ??????????????????? | | ?????????????????????????????????????????????????? | | ?????????????????????????????????????????????????? | | ?????????????????????????????????????????????????? | +----------------------------------------------------+ Best States ------------- Heat Dissipation 56 Energy Generation 27 Energy Capacity 440 Matter Stores 300 Matter Capacity 300 Sight Range 16 Robot Scan Range 16 Terrain Scan Range 14 Terrain Scan Density 10 Jamming Range 12 Armor Coverage 225 Propulsion Shielding 90 Evasion (%) 55 Targeting Accuracy 16 Recoil Reduction 2 Kinecelleration 30 Item Schematics ----------------- None Robot Schematics ------------------ None Fabricated ------------ Nothing Alien Tech Used ----------------- None Achievements -------------- Back For More No Signal Novice Programmer Challenges ------------ None Game ------ Seed DamperMinesnifferArticulator Manual? 0 Play Time 00:52:19 Cumulative 49.0 hours Start 2024.10.27 @ 20:30:21 End 2024.10.27 @ 22:23:34 Sessions 1 Manual Loads 0 Difficulty Rogue Special Mode None Game No. 51 Rogue 50 Adventurer 1 Explorer 0 Win Type - Total 1 Types 1/0/0/0/0/0/0/0/0 Lore% 25 Gallery% 42 Achievement% 39 Wizard Run 0 Options --------- Layout 0 ASCII 0 Keyboard 0 Movement Numpad Keybinds 0 Fullscreen 1 Font 18/SmallcapsGlow Map View 76x50 Zoom Use 0% Tactical HUD 0 Map Filters NONE Filters NONE Steam 1 RUN: cbdfb48c-f5a1-4c00-85e9-860e1a351b76